bitfinex-derivatives/quotes_SOLF0:USTF0_20240906
["timestamp","ask_amount","ask_price","bid_price","bid_amount"]
[1725631487407,44.3,130.39,130.26,44.3]
[1725631487708,44.3,130.37,130.26,44.3]
[1725631487910,44.3,130.37,130.31,3.8374]
[1725631488201,3.8363,130.36,130.34,0.0547255]
[1725631488409,44.3,130.37,130.34,0.0547255]
[1725631488602,44.3,130.37,130.26,44.3]
[1725631488795,3.8368,130.34,130.26,44.3]
[1725631489001,3.94427063,130.36,130.26,44.3]
[1725631489197,44.3,130.34,130.23,48.20400645]
[1725631489402,9.674,130.4,130.25,44.3]
[1725631489403,44.3,130.37,130.25,44.3]
[1725631489803,3.8368,130.34,130.25,44.3]
[1725631490011,44.3,130.37,130.25,44.3]
[1725631490208,0.04863011,130.32,130.28,44.3]
[1725631490505,1.8966,130.39,130.3,44.3]
[1725631490709,1.8966,130.39,130.3,48.15554528]
[1725631490910,2.0041,130.4,130.32,44.3]
[1725631492211,2.0041,130.4,130.38,3.8353]
[1725631492405,1.9011,130.42,130.35,0.05768526]
[1725631492897,1.9011,130.42,130.32,44.3]
[1725631493303,1.9011,130.42,130.36,3.8359]
[1725631493507,3.8349,130.4,130.37,0.05757386]
[1725631493998,0.05262703,130.38,130.37,0.05757386]
[1725631494506,0.05262703,130.38,130.3,3.85554528]
[1725631494711,0.05262703,130.38,130.28,44.3]
[1725631495008,44.3,130.41,130.28,44.3]
[1725631495207,3.835,130.4,130.3,44.3]
[1725631495402,1.9011,130.42,130.37,3.8355]
[1725631495603,3.8358,130.37,130.3,48.17661924]
[1725631495904,1.9011,130.42,130.38,3.8353]
[1725631496306,5.7357,130.42,130.38,3.8353]
[1725631496611,1.9011,130.42,130.36,3.8359]
[1725631496911,3.8351,130.4,130.32,44.3]
[1725631497116,0.04886923,130.41,130.38,3.8353]
[1725631497506,1.9011,130.42,130.32,44.3]
[1725631497813,44.3,130.41,130.3,3.87661924]
[1725631498003,3.8359,130.37,130.28,46.2058]
[1725631498203,3.8359,130.37,130.28,50.09776915]
[1725631498503,3.92420395,130.39,130.28,50.09776915]
[1725631498504,3.8363,130.36,130.28,50.09776915]
[1725631498705,1.9194,130.38,130.28,3.89196915]
[1725631498905,44.3,130.37,130.25,0.9477]
[1725631499104,3.8373,130.32,130.25,3.82596454]
[1725631499409,44.35348102,130.33,130.22,48.0972]
[1725631499606,44.35348102,130.33,130.22,3.7972]
[1725631499801,44.35348102,130.33,130.24,3.8394]
[1725631500007,3.839,130.27,130.2,44.3]
[1725631500210,44.3,130.28,130.2,3.8405]
[1725631500416,1.9194,130.26,130.18,3.81944083]
[1725631500723,1.9194,130.26,130.16,3.7972]
[1725631500905,1.9194,130.26,130.16,7.6227808]
[1725631501106,0.05546688,130.25,130.2,44.3]
[1725631501708,3.8386,130.28,130.2,44.3]
[1725631501915,1.8583,130.31,130.2,44.3]
[1725631502108,1.8583,130.31,130.22,44.3]
[1725631502305,2.351e-05,130.24,130.22,44.3]
[1725631502615,3.7672,130.4,130.23,0.9441]
[1725631502917,1.8583,130.4,130.33,44.3]
[1725631503111,1.8583,130.46,130.36,44.3]
[1725631503314,1.8583,130.46,130.38,44.3]
[1725631504010,0.05157076,130.43,130.38,48.10750875]
[1725631504215,0.05157076,130.43,130.36,44.3]
[1725631504523,0.05157076,130.43,130.41,0.05242107]
[1725631504813,1.9621,130.49,130.41,44.35242107]
[1725631505318,48.1808,130.54,130.41,44.3]
[1725631505514,44.3,130.58,130.45,44.3]
[1725631505722,44.3,130.58,130.45,48.16759518]
[1725631505919,44.3,130.54,130.43,44.3]
[1725631506214,44.3,130.54,130.41,44.3]
[1725631506412,44.3,130.54,130.36,118.85749208]
[1725631506413,44.3,130.52,130.39,44.3]
[1725631506613,1.8767,130.51,130.39,44.3]
[1725631506815,3.8325,130.49,130.36,118.85749208]
[1725631507121,1.8767,130.51,130.36,118.85749208]
[1725631507122,44.3,130.47,130.36,118.85749208]
[1725631507520,44.3,130.47,130.41,3.8343]
[1725631508017,44.3,130.47,130.41,3.88753935]
[1725631508222,44.3,130.47,130.41,0.05323935]
[1725631508433,44.3,130.45,130.41,0.05323935]
[1725631508721,44.3,130.43,130.31,44.3]
[1725631508924,44.3,130.43,130.26,1.9015]
[1725631508925,44.3,130.41,130.29,44.3]
[1725631509216,48.11019693,130.41,130.29,44.3]
[1725631509421,44.3,130.39,130.26,44.3]
[1725631509616,44.3,130.36,130.24,44.3]
[1725631510031,3.89686203,130.41,130.27,44.3]
[1725631510032,44.3,130.39,130.27,44.3]
[1725631510322,44.3,130.41,130.31,0.05149204]
[1725631510517,1.8674,130.42,130.31,48.18239656]
[1725631510825,1.8674,130.42,130.31,44.35149204]
[1725631511120,1.8674,130.42,130.31,44.3]
[1725631511320,3.835,130.4,130.34,3.8364]
[1725631511519,44.3,130.41,130.31,48.22036648]
[1725631511716,1.8674,130.42,130.35,0.0494927]
[1725631512414,5.7019,130.42,130.37,3.8355]
[1725631512718,1.8145,130.46,130.37,44.3]
[1725631513121,1.8145,130.46,130.4,44.3]
[1725631513312,1.8145,130.46,130.4,48.09795096]
[1725631513513,1.9765,130.49,130.42,44.3]
[1725631513931,44.3,130.52,130.42,44.3]
[1725631514115,1.8182,130.53,130.42,44.35196803]
[1725631514422,44.3,130.5,130.42,0.05196803]
[1725631514626,3.79562093,130.49,130.41,3.8345]
[1725631514925,44.3,130.47,130.36,46.2031]
[1725631515225,44.3,130.47,130.45,0.05666448]
[1725631515427,48.06992561,130.5,130.45,0.05666448]
[1725631515625,3.8323,130.49,130.45,0.05666448]
[1725631515824,44.3,130.52,130.4,3.7415457]
[1725631515825,44.3,130.52,130.42,44.3]
[1725631516019,44.3,130.5,130.36,1.9031]
[1725631516219,48.09983957,130.5,130.38,44.3]
[1725631516422,48.09983957,130.5,130.46,0.05466156]
[1725631516616,3.834,130.44,130.4,3.8349]
[1725631516821,44.3,130.47,130.36,1.9031]
[1725631517225,44.3,130.47,130.38,3.8353]
[1725631517226,3.8343,130.42,130.38,3.8353]
[1725631517524,44.3,130.47,130.38,3.82821947]
[1725631517731,3.8331,130.46,130.36,44.3]
[1725631517921,44.3,130.47,130.36,44.3]
[1725631518232,0.05094175,130.41,130.32,1.935]
[1725631518419,0.05094175,130.41,130.34,44.3]
[1725631518618,0.05094175,130.41,130.32,5.86344373]
[1725631518619,0.05094175,130.41,130.36,44.3]
[1725631518830,3.78192298,130.49,130.36,44.3]
[1725631518831,48.08192298,130.49,130.4,3.8349]
[1725631519122,8.07336091,130.48,130.39,3.9023615]
[1725631519322,3.8323,130.49,130.4,44.3]
[1725631519922,3.8328,130.48,130.4,44.3]
[1725631520217,44.3,130.51,130.4,44.3]
[1725631520422,3.8324,130.49,130.44,3.8335]
[1725631520625,44.3,130.51,130.4,46.2499]
[1725631520834,1.8182,130.53,130.43,44.3]
[1725631521124,1.8182,130.53,130.32,3.92844373]
[1725631521125,44.3,130.47,130.27,1.8974]
[1725631521329,44.3,130.47,130.33,44.3]
[1725631521521,3.74299482,130.46,130.34,1.9499]
[1725631521723,44.3,130.44,130.34,1.9499]
[1725631522125,3.8351,130.4,130.35,3.8362]
[1725631522426,0.05590595,130.41,130.34,1.9499]
[1725631522624,0.05590595,130.41,130.38,0.05731296]
[1725631523019,1.9104,130.45,130.38,0.05731296]
[1725631523020,44.3,130.49,130.38,0.05731296]
[1725631523236,8.07755322,130.48,130.38,0.05731296]
[1725631523451,44.3,130.46,130.38,0.05731296]
[1725631523628,44.3,130.44,130.38,0.05731296]
[1725631523823,44.3,130.44,130.33,3.92586981]
[1725631524225,44.3,130.44,130.32,44.3]
[1725631524535,48.12235566,130.46,130.32,44.3]
[1725631524723,8.07563692,130.45,130.32,48.15961334]
[1725631524927,0.0581156,130.39,130.35,44.3]
[1725631525125,1.9441,130.47,130.37,44.3]
[1725631525431,44.3,130.51,130.37,44.35771334]
[1725631525624,8.08084498,130.5,130.39,44.3]
[1725631525823,8.08084498,130.5,130.38,1.9235]
[1725631525824,44.3,130.48,130.38,1.9235]
[1725631526036,44.3,130.48,130.37,0.05771334]
[1725631526229,1.9024,130.51,130.37,0.05771334]
[1725631526230,8.08142032,130.49,130.37,0.05771334]
[1725631526431,8.08142032,130.49,130.39,44.3]
[1725631526628,8.08142032,130.49,130.37,44.3]
[1725631526629,52.38142032,130.49,130.37,44.3]
[1725631526828,52.38142032,130.49,130.32,48.15961334]
[1725631526829,44.3,130.45,130.32,48.15961334]
[1725631527033,3.9592,130.44,130.32,48.15961334]
[1725631527232,7.87137468,130.44,130.32,48.15961334]
[1725631527738,3.8352,130.39,130.34,3.8364]
[1725631527941,44.3,130.42,130.32,48.20565247]
[1725631528146,48.2592,130.44,130.32,48.20565247]
[1725631528343,7.74399976,130.44,130.32,48.20565247]
[1725631528534,7.74399976,130.44,130.37,0.05727378]
[1725631528736,3.8349,130.4,130.37,3.89297378]
[1725631528934,44.3,130.43,130.37,0.05727378]
[1725631529233,3.8351,130.4,130.37,0.05727378]
[1725631529742,44.3,130.43,130.37,0.05727378]
[1725631530131,3.9592,130.44,130.37,0.05727378]
[1725631530339,7.7932,130.44,130.4,3.8347]
[1725631530540,3.9592,130.44,130.37,0.05727378]
[1725631530948,3.8342,130.43,130.4,3.8347]
[1725631531538,44.3,130.42,130.39,0.0492197]
[1725631531743,44.3,130.4,130.31,3.92806017]
[1725631532145,3.8354,130.39,130.35,3.8361]
[1725631532332,44.3,130.4,130.31,3.92806017]
[1725631532637,44.3,130.4,130.3,3.75584076]
[1725631532837,44.3,130.42,130.3,44.3]
[1725631533041,3.9592,130.44,130.32,44.3]
[1725631533042,48.2592,130.44,130.32,44.3]
[1725631533240,3.9592,130.44,130.34,44.3]
[1725631533652,7.77219152,130.44,130.32,44.3]
[1725631533847,7.77219152,130.44,130.28,44.3]
[1725631533848,0.05829077,130.37,130.3,44.3]
[1725631534042,0.05829077,130.37,130.35,3.8363]
[1725631534250,3.8353,130.39,130.35,3.8363]
[1725631534447,44.3,130.43,130.32,3.78470646]
[1725631534740,44.3,130.43,130.3,44.3]
[1725631534741,3.8351,130.4,130.36,3.8359]
[1725631534947,44.3,130.43,130.3,44.3]
[1725631535150,3.8348,130.41,130.37,3.8356]
[1725631535643,44.3,130.43,130.32,3.83266756]
[1725631535847,0.05530261,130.4,130.3,44.3]
[1725631536035,44.3,130.36,130.25,44.3]
[1725631536539,44.3,130.34,130.24,1.9876]
[1725631536733,1.973,130.33,130.23,3.78593402]
[1725631536934,3.8374,130.32,130.28,3.8384]
[1725631537134,1.973,130.33,130.23,44.3]
[1725631537343,1.973,130.33,130.31,3.8375]
[1725631537548,1.9098,130.35,130.31,3.8375]
[1725631537734,1.9098,130.35,130.25,44.3]
[1725631537938,1.9098,130.35,130.34,3.8366]
[1725631538743,5.8083,130.39,130.36,3.836]
[1725631539051,5.8083,130.39,130.3,3.76140308]
[1725631539052,1.973,130.39,130.3,3.76140308]
[1725631539352,1.973,130.39,130.35,3.8362]
[1725631539652,1.973,130.39,130.31,3.75334129]
[1725631539837,5.8084,130.39,130.27,44.3]
[1725631540448,5.8084,130.39,130.35,3.8361]
[1725631541445,5.8084,130.39,130.36,3.836]
[1725631541748,1.973,130.39,130.35,3.8361]
[1725631541954,0.05345952,130.38,130.35,3.8361]
[1725631542138,0.05345952,130.38,130.3,44.3]
[1725631542450,0.05345952,130.38,130.37,3.8358]
[1725631542951,1.8837,130.43,130.34,48.2172965]
[1725631543151,1.8837,130.43,130.34,44.3]
[1725631543349,1.8837,130.43,130.4,3.8347]
[1725631543742,1.8837,130.43,130.36,3.92151772]
[1725631543944,1.8837,130.43,130.41,3.8343]
[1725631544443,1.8837,130.43,130.34,44.3]
[1725631544739,1.8837,130.43,130.33,1.8355]
[1725631544941,44.3,130.42,130.32,44.3]
[1725631545142,44.3,130.4,130.29,1.8473]
[1725631545446,44.3,130.38,130.27,2.002]
[1725631545652,1.8645,130.37,130.27,5.76512111]
[1725631545951,3.6809,130.37,130.27,5.76512111]
[1725631546148,3.8364,130.35,130.31,3.8373]
[1725631546447,0.05205046,130.36,130.27,5.76512111]
[1725631546954,3.88815046,130.36,130.32,3.837]
[1725631547346,3.8361,130.36,130.32,3.837]
[1725631547751,3.6809,130.37,130.28,44.3]
[1725631547949,0.05240693,130.35,130.28,44.3]
[1725631548645,0.05240693,130.35,130.34,3.8366]
[1725631549946,0.05240693,130.35,130.3,44.3]
[1725631550250,0.05240693,130.35,130.27,50.06512111]
[1725631550447,0.05240693,130.35,130.33,3.8368]
[1725631550653,0.05240693,130.35,130.27,50.06512111]
[1725631550844,3.8356,130.38,130.27,50.06512111]
[1725631551162,44.3,130.4,130.35,3.8363]
[1725631551345,44.3,130.4,130.29,44.3]
[1725631551545,44.3,130.4,130.34,3.8364]
[1725631551546,8.06456391,130.39,130.34,3.8364]
[1725631551752,44.3,130.4,130.27,50.06512111]
[1725631552053,3.8366,130.35,130.27,5.76512111]
[1725631552354,3.8366,130.35,130.25,44.3]
[1725631552355,48.1366,130.35,130.25,44.3]
[1725631552557,44.3,130.35,130.25,48.07876949]
[1725631552747,0.05139964,130.36,130.25,48.07876949]
[1725631552945,44.3,130.38,130.25,48.07876949]
[1725631553154,44.3,130.4,130.25,48.07876949]
[1725631553461,3.8359,130.37,130.33,3.8368]
[1725631554059,44.3,130.38,130.32,3.8372]
[1725631554351,44.3,130.38,130.25,48.07876949]
[1725631554352,8.06747085,130.37,130.25,48.07876949]
[1725631554559,52.36656272,130.36,130.31,3.8373]
[1725631554752,44.3,130.34,130.23,47.9617]
[1725631554952,44.3,130.31,130.23,1.8473]
[1725631555148,8.06327089,130.33,130.18,1.9452]
[1725631555149,44.3,130.29,130.18,1.9452]
[1725631555448,44.3,130.29,130.13,44.3]
[1725631555449,44.3,130.25,130.13,44.3]
[1725631555959,44.3,130.23,130.1,44.3]
[1725631556344,48.1399,130.23,130.22,0.05180589]
[1725631556559,0.04849258,130.2,130.15,3.8421]
[1725631556759,44.3,130.18,130.07,1.982]
[1725631557056,3.86178205,130.2,130.05,3.86592631]
[1725631557057,44.3,130.16,130.05,3.86592631]
[1725631557258,44.3,130.16,130.08,3.8442]
[1725631557555,1.8803,130.15,130.04,48.15901052]
[1725631557751,44.3,130.14,130.08,3.8443]
[1725631557953,3.76910526,130.13,130.08,3.8443]
[1725631558153,3.91945323,130.13,130.03,3.8544]
[1725631558354,3.91945323,130.13,130.06,3.8446]
[1725631558355,3.8432,130.12,130.06,3.8446]
[1725631558554,0.05429534,130.13,130.05,3.80445263]
[1725631558859,3.8434,130.12,130.07,3.8446]
[1725631559050,3.86669473,130.13,130.03,3.85055789]
[1725631559356,3.8432,130.12,130.06,3.8447]
[1725631559559,0.05454611,130.1,130.06,3.8447]
[1725631559754,0.05454611,130.1,130.03,3.89666315]
[1725631559955,0.05454611,130.1,130.01,44.3]
[1725631560147,0.05454611,130.1,130.03,44.3]
[1725631560346,0.05454611,130.1,130.05,44.3]
[1725631560552,0.05454611,130.1,130.09,3.844]
[1725631560759,1.8803,130.15,130.09,3.844]
[1725631561060,44.3,130.14,130.03,44.3]
[1725631561357,44.3,130.07,130.01,3.79132173]
[1725631561560,44.3,130.05,129.98,3.8471]
[1725631561861,44.3,130.03,129.91,44.3]
[1725631562049,3.8463,130.02,129.91,44.3]
[1725631562252,44.3,130.03,129.89,4.93079175]
[1725631562452,44.3,130.0,129.87,3.9151]
[1725631562760,3.6747,130.06,129.74,10.56144144]
[1725631562761,44.3,129.93,129.74,10.56144144]
[1725631562952,44.3,129.93,129.79,44.3]
[1725631562953,44.3,129.91,129.79,44.3]
[1725631563153,1.8646,129.92,129.87,3.8505]
[1725631563354,1.8646,129.92,129.84,44.3]
[1725631564057,1.8646,129.92,129.84,48.22723889]
[1725631564248,1.8646,129.92,129.84,3.92723889]
[1725631564452,1.8646,129.92,129.82,44.3]
[1725631564658,1.8646,129.92,129.82,48.19950904]
[1725631564852,44.3,129.9,129.73,1.922]
[1725631565055,44.3,129.9,129.77,44.3]
[1725631565261,44.3,129.85,129.77,3.85406291]
[1725631565451,1.8646,129.92,129.74,44.3]
[1725631565755,0.04960484,129.88,129.86,0.05590074]
[1725631566066,0.04960484,129.88,129.67,70.80539652]
[1725631566067,0.04960484,129.88,129.71,44.3]
[1725631566257,0.04960484,129.88,129.79,44.3]
[1725631566458,0.04960484,129.88,129.79,48.10025674]
[1725631566954,0.04960484,129.88,129.7,3.8884646]
[1725631566955,44.3,129.81,129.7,3.8884646]
[1725631567157,44.3,129.81,129.69,44.3]
[1725631567359,44.3,129.79,129.67,44.3]
[1725631567861,44.3,129.81,129.69,44.3]
[1725631568058,44.3,129.74,129.53,2.0027]
[1725631568258,44.3,129.76,129.64,44.3]
[1725631568467,44.3,129.79,129.66,44.3]
[1725631568758,3.7571,129.8,129.78,3.8532]
[1725631568759,1.8632,129.8,129.78,3.8532]
[1725631568960,1.8632,129.8,129.72,3.79447893]
[1725631569264,44.3,129.88,129.75,44.3]
[1725631569665,44.3,129.86,129.71,3.79717524]
[1725631569968,44.3,129.88,129.77,44.3]
[1725631570260,1.8632,129.92,129.7,1.906]
[1725631570261,44.3,129.9,129.8,44.3]
[1725631570463,46.1632,129.92,129.8,44.3]
[1725631570665,0.05584817,129.83,129.77,48.19322012]
[1725631570858,0.05584817,129.83,129.82,3.852]
[1725631571266,44.3,129.86,129.77,3.89322012]
[1725631571458,44.3,129.89,129.7,5.70212081]
[1725631571459,44.3,129.83,129.7,50.00212081]
[1725631571661,44.3,129.83,129.7,3.79612081]
[1725631571662,44.3,129.81,129.7,3.79612081]
[1725631571969,44.3,129.81,129.68,44.3]
[1725631572271,44.3,129.81,129.68,48.12193689]
[1725631572458,44.3,129.83,129.71,44.3]
[1725631572658,44.3,129.81,129.69,44.3]
[1725631573064,44.3,129.79,129.69,48.15116355]
[1725631573265,44.3,129.77,129.65,75.68360864]
[1725631573468,0.05086161,129.76,129.65,75.68360864]
[1725631573766,0.05086161,129.76,129.66,44.3]
[1725631573966,44.3,129.79,129.65,75.68360864]
[1725631574277,44.3,129.74,129.62,44.3]
[1725631574564,44.3,129.74,129.56,44.3]
[1725631574565,44.3,129.77,129.64,44.3]
[1725631574766,48.1536,129.77,129.64,44.3]
[1725631574965,0.05486649,129.72,129.64,48.22555052]
[1725631575170,0.05486649,129.72,129.64,3.92555052]
[1725631575368,0.05486649,129.72,129.64,44.3]
[1725631575564,0.05486649,129.72,129.64,3.84345506]
[1725631575767,0.05486649,129.72,129.63,44.3]
[1725631575972,44.3,129.74,129.63,48.1176316]
[1725631576272,44.3,129.79,129.73,3.8545]
[1725631576474,3.737,129.8,129.67,44.3]
[1725631576672,44.3,129.78,129.65,44.3]
[1725631576969,0.05164051,129.69,129.67,44.3]
[1725631577173,3.737,129.8,129.67,48.20238726]
[1725631577365,44.3,129.73,129.45,25.52386754]
[1725631577565,44.3,129.73,129.63,44.3]
[1725631577764,9.44618309,129.8,129.69,3.8556]
[1725631577765,44.3,129.75,129.69,3.8556]
[1725631577962,44.3,129.78,129.65,44.3]
[1725631578370,1.897,129.8,129.7,44.3]
[1725631578670,44.3,129.83,129.7,48.2047007]
[1725631578874,0.05327959,129.73,129.72,3.855]
[1725631579368,0.05327959,129.73,129.48,11.5864]
[1725631579572,44.3,129.7,129.53,1.967]
[1725631579773,44.3,129.7,129.58,44.3]
[1725631579963,44.3,129.68,129.53,5.79043222]
[1725631580167,0.05444816,129.62,129.54,1.41790275]
[1725631580367,44.3,129.59,129.54,3.8602]
[1725631580573,44.3,129.59,129.41,7.53664544]
[1725631580771,1.9097,129.61,129.48,44.3]
[1725631580971,44.3,129.6,129.48,3.8346141]
[1725631581171,44.3,129.6,129.47,44.3]
[1725631581369,44.3,129.6,129.42,45.3]
[1725631581370,44.3,129.57,129.42,1.0]
[1725631581569,44.3,129.57,129.43,45.71885792]
[1725631581773,44.3,129.57,129.44,1.41885792]
[1725631581975,44.3,129.57,129.46,44.3]
[1725631582176,46.2097,129.61,129.42,3.9317808]
[1725631582375,44.3,129.59,129.47,1.41861183]
[1725631582574,0.05471999,129.51,129.44,44.3]
[1725631582771,0.05471999,129.51,129.41,53.72204544]
[1725631582975,0.05471999,129.51,129.46,3.8627]
[1725631583277,44.3,129.49,129.41,7.53664544]
[1725631583483,44.3,129.47,129.41,6.03664544]
[1725631583870,44.3,129.45,129.41,6.03664544]
[1725631584773,44.3,129.42,129.41,6.03664544]
[1725631584972,44.35488429,129.44,129.41,6.03664544]
[1725631585373,0.05488429,129.44,129.41,6.03664544]
[1725631585776,0.05488429,129.44,129.43,3.8636]
[1725631586074,0.05488429,129.44,129.41,6.03664544]
[1725631586483,0.05488429,129.44,129.43,3.8636]
[1725631586974,44.3,129.57,129.43,44.3]
[1725631587170,1.9714,129.61,129.49,44.3]
[1725631587383,44.3,129.57,129.41,9.93807077]
[1725631587585,1.9714,129.61,129.43,44.3]
[1725631587879,46.2714,129.61,129.44,1.4188051]
[1725631588082,46.2714,129.61,129.47,44.3]
[1725631588475,46.2714,129.61,129.56,3.8595]
[1725631588674,46.2714,129.61,129.47,44.3]
[1725631588972,44.3,129.54,129.42,44.3]
[1725631589177,44.3,129.56,129.45,44.3]
[1725631589382,1.9714,129.61,129.45,44.3]
[1725631589383,44.3,129.58,129.45,44.3]
[1725631589575,44.3,129.58,129.47,44.3]
[1725631589777,46.2714,129.61,129.47,44.3]
[1725631590074,46.2714,129.61,129.49,44.3]
[1725631590273,46.2714,129.61,129.49,3.86023154]
[1725631590473,46.2714,129.61,129.5,44.3]
[1725631590673,44.3,129.63,129.52,44.3]
[1725631590876,44.3,129.63,129.49,3.88224146]
[1725631591086,0.04968267,129.56,129.53,3.8606]
[1725631591475,0.04968267,129.56,129.49,3.93437023]
[1725631591676,0.04968267,129.56,129.41,9.81174479]
[1725631591677,44.3,129.55,129.41,6.03664544]
[1725631591875,44.3,129.55,129.41,9.90653045]
[1725631591876,44.3,129.52,129.41,9.90653045]
[1725631592485,44.3,129.5,129.41,9.90653045]
[1725631592784,44.3,129.5,129.43,3.8636]
[1725631592785,3.8618,129.49,129.43,3.8636]
[1725631592978,44.3,129.48,129.41,6.03664544]
[1725631593279,44.3,129.45,129.41,6.03664544]
[1725631593671,3.863,129.45,129.41,6.03664544]
[1725631593873,44.3,129.47,129.41,6.03664544]
[1725631594085,44.3,129.45,129.43,0.05496528]
[1725631594287,44.3,129.5,129.43,0.05496528]
[1725631594288,0.05230442,129.44,129.43,0.05496528]
[1725631594990,0.05230442,129.44,129.33,0.02]
[1725631594991,3.97862007,129.44,129.33,0.02]
[1725631595183,44.3,129.4,129.33,0.02]
[1725631595483,1.9759,129.48,129.33,0.02]
[1725631595484,44.3,129.38,129.33,0.02]
[1725631595983,44.3,129.4,129.33,0.02]
[1725631596180,44.3,129.38,129.33,0.02]
[1725631596378,44.3,129.43,129.33,0.02]
[1725631596379,3.83467046,129.44,129.33,0.02]
[1725631596581,44.3,129.4,129.33,0.02]
[1725631596888,3.8657,129.37,129.33,0.02]
[1725631597077,0.0568827,129.37,129.33,0.02]
[1725631597874,44.3,129.38,129.33,0.02]
[1725631598082,44.3,129.41,129.33,0.02]
[1725631598685,3.85477764,129.44,129.33,0.02]
[1725631598686,0.05025383,129.36,129.33,0.02]
[1725631599087,0.05025383,129.36,129.35,3.866]
[1725631599575,44.3,129.43,129.33,0.02]
[1725631599881,44.3,129.4,129.33,0.02]
[1725631600180,44.3,129.45,129.33,0.02]
[1725631600489,0.0572971,129.37,129.35,44.3]
[1725631600779,50.1383,129.48,129.36,44.3]
[1725631600984,46.2759,129.48,129.34,44.3]
[1725631601285,44.3,129.43,129.33,0.02]
[1725631601487,44.3,129.45,129.33,0.02]
[1725631601781,44.3,129.45,129.38,3.8649]
[1725631602179,44.3,129.41,129.33,0.02]
[1725631602390,0.05413722,129.4,129.33,0.02]
[1725631602785,44.3,129.35,129.33,0.02]
[1725631603184,44.3,129.35,129.1,44.3]
[1725631603185,44.3,129.35,129.05,25.59182663]
[1725631603483,44.3,129.32,129.22,1.42116819]
[1725631603683,44.3,129.36,129.25,44.3]
[1725631604280,44.3,129.36,129.23,44.3]
[1725631604679,44.3,129.36,129.24,3.85290129]
[1725631604884,48.1658,129.36,129.28,3.8678]
[1725631605188,44.3,129.36,129.23,48.15444739]
[1725631605378,44.3,129.38,129.28,44.3]
[1725631605580,3.7701,129.42,129.31,44.3]
[1725631605782,1.8812,129.42,129.31,44.3]
[1725631606080,44.3,129.48,129.36,44.3]
[1725631606488,44.3,129.46,129.34,44.3]
[1725631606889,44.3,129.43,129.34,3.8486212]
[1725631607082,44.3,129.43,129.31,44.3]
[1725631607280,44.3,129.43,129.32,44.3]
[1725631607577,44.3,129.46,129.35,44.3]
[1725631608089,44.3,129.43,129.29,44.3]
[1725631608385,0.0491762,129.39,129.29,44.3]
[1725631608586,0.0491762,129.39,129.31,44.3]
[1725631608888,0.0491762,129.39,129.33,44.3]
[1725631609092,0.0491762,129.39,129.31,48.14219398]
[1725631609385,44.3,129.41,129.31,3.80198183]
[1725631609587,1.9961,129.48,129.33,44.3]
[1725631609790,44.3,129.47,129.36,44.3]
[1725631610187,1.9961,129.48,129.38,44.3]
[1725631610388,46.2961,129.48,129.31,3.898259]
[1725631610594,48.1637,129.43,129.36,3.8654]
[1725631610887,44.3,129.41,129.29,44.3]
[1725631611094,44.3,129.41,129.35,3.866]
[1725631611390,44.3,129.41,129.3,3.86152675]
[1725631611696,44.3,129.41,129.24,3.7942]
[1725631611697,44.3,129.35,129.25,3.8689]
[1725631611988,44.3,129.37,129.25,3.96012385]